Cogmind - Beta 16.1 @@@ ROGUE MODE // 2026.02.09 @ 23:41:30 Player: TheSkyeDoctor Result: Destroyed by C-17 Slicer with Blade Saw Performance ------------- Evolutions (2) 1000 Regions Visited (4) 800 Robots Destroyed (21) 105 Value Destroyed (456) 456 Prototype IDs (2) 40 Alien Tech Used (0) 0 Bonus (0) 0 TOTAL SCORE: 2401 Bonus ------- None Cogmind --------- Core Integrity 0/550 Matter 189/300 Energy 100/100 System Corruption 2% Temperature Cool (95) Movement Core (100) Ox1 Location -8/Materials Parts ------- > --- POWER (1) -------- (None) > --- PROPULSION (4) --- (None) > --- UTILITY (4) ------ Small Storage Unit Advanced Targeting Computer > --- WEAPON (2) ------- (None) > --- INVENTORY (8) ---- Heat Sink Particle Charger Datajack Peak State ------------ > --- POWER ------------ Light Nuclear Core > --- PROPULSION ------- Improved Hover Unit Improved Hover Unit Improved Hover Unit Improved Hover Unit > --- UTILITY ---------- Small Storage Unit Advanced Targeting Computer Light Armor Plating Hacking Suite > --- WEAPON ----------- Heavy Particle Cannon Heavy Particle Cannon > --- INVENTORY -------- Nuclear Core Improved Hover Unit Improved Hover Unit Improved Hover Unit Improved Hover Unit Particle Charger Datajack [Rating: 26] Favorites ----------- Power Ion Engine Engine Ion Engine Power Core Light Nuclear Core Propulsion Compact Wheel Wheel Compact Wheel Hover Unit Improved Hover Unit Utility Small Storage Unit Storage Small Storage Unit Processor Advanced Targeting Computer Hackware Hacking Suite Protection Light Armor Plating Weapon Heavy Particle Cannon Energy Cannon Heavy Particle Cannon Ballistic Gun Assault Rifle Launcher Grenade Launcher Slashing Weapon Blade Saw Special Melee Weapon Datajack Build | -11 -10 -10 -9 -8 ------- Run | Yrd Mat Min Mat Mat Slots Evolved 4 | . . . 2 2 Power . | . . . . . Propulsion 2 | . . . 2 . Utility 2 | . . . . 2 Weapon . | . . . . . Parts Attached 32 | 6 . 2 13 11 Power 4 | 1 . 1 . 2 Engine 2 | 1 . 1 . . Core 2 | . . . . 2 Reactor . | . . . . . Propulsion 15 | 2 . . 9 4 Treads . | . . . . . Leg . | . . . . . Wheel 7 | 2 . . 5 . Hover 8 | . . . 4 4 Flight . | . . . . . Utility 4 | 1 . . 1 2 Device . | . . . . . Storage 1 | 1 . . . . Processor 1 | . . . 1 . Hackware 1 | . . . . 1 Protection 1 | . . . . 1 Artifact . | . . . . . Weapon 9 | 2 . 1 3 3 Energy Gun . | . . . . . Energy Cannon 2 | . . . 1 1 Ballistic Gun 2 | 2 . . . . Ballistic Cannon . | . . . . . Launcher 3 | . . . 2 1 Special Weapon . | . . . . . Impact Weapon . | . . . . . Slashing Weapon 1 | . . . . 1 Piercing Weapon . | . . . . . Special Melee Weapon 1 | . . 1 . . Unidentified Prototypes . | . . . . . Parts Lost 17 | . . . 6 11 Power 2 | . . . 1 1 Propulsion 10 | . . . 3 7 Utility 1 | . . . . 1 Weapon 4 | . . . 2 2 Highest Loss Streak 10 | . . . 6 10 To Critical Strikes . | . . . . . Average Backups 5 | 1 3 4 4 7 Power . | . 1 1 1 . Propulsion 1 | . 2 2 . 3 Utility . | . . . . 1 Weapon 1 | . . . 1 . Tool/Special . | . . . . . Unused Backups 3 | . . . . 3 Power 1 | . . . . 1 Propulsion . | . . . . . Utility 2 | . . . . 2 Weapon . | . . . . . Tool/Special . | . . . . . Average Slot Usage (%) 86 | . 85 85 86 87 Engine 7 | . 14 14 9 . Core 2 | . . . . 6 Wheel 20 | . 28 28 34 . Hover 14 | . . . 5 31 Storage 10 | . 14 14 11 9 Processor 5 | . . . 4 9 Hackware 2 | . . . . 7 Protection 2 | . . . . 6 Energy Cannon 5 | . . . 4 10 Ballistic Gun 6 | . 28 19 4 . Launcher 4 | . . . 7 3 Special Melee Weapon 2 | . . 8 5 . Peak Build Rating 26 | 6 6 6 18 26 Average Rating 13 | 4 6 6 10 21 On Entrance 7 | . 6 6 6 18 Avg Prop Armor Cover (%) 12 | . . . . 12 Naked Turns . | . . . . . Heaviest Build 25 | 14 14 12 19 25 Greatest Support 64 | 32 32 32 64 32 Greatest Overweight (x) 3 | . . . 2 3 Average Overweight (x) . | . . . . . Largest Inventory Capacity 8 | 8 8 8 8 8 Average Capacity 7 | 6 8 8 8 8 Most Carried 8 | 4 4 4 8 8 Average Carried 5 | 2 3 4 4 7 Final Capacity 8 | 8 8 8 8 8 Final Carried 8 | 3 4 4 8 3 Class Distribution -------------------- 100% | Mutant Dominant Class ---------------- Mutant | -10/Materials Mutant | -10/Mines Mutant | -9/Materials Mutant | -8/Materials Resources | -11 -10 -10 -9 -8 ----------- Run | Yrd Mat Min Mat Mat Matter Collected 616 | 233 . 68 175 140 Remotely . | . . . . . Salvage Created 679 | 55 . 35 405 184 Parts 53 | 3 . 5 25 20 Haulers Intercepted . | . . . . . Recyclers Shooed 1 | . . . 1 . Parts Field Recycled . | . . . . . Retrieved Matter . | . . . . . Parts Self-Destructed . | . . . . . Prevented . | . . . . . Parts Restored . | . . . . . Kills | -11 -10 -10 -9 -8 ------- Run | Yrd Mat Min Mat Mat Combat Hostiles Destroyed 13 | . . 2 5 6 Guns 4 | . . 2 2 . Cannons 6 | . . . . 6 AOE 2 | . . . 2 . Classes Destroyed 8 | 1 . 1 5 1 Builder 1 | . . . 1 . Recycler 3 | 1 . . 2 . Mechanic 1 | . . . 1 . Watcher 3 | . . . 3 . Swarmer 2 | . . 2 . . Cutter 4 | . . . . 4 Grunt 4 | . . . 4 . Sentry 3 | . . . 1 2 Best Kill Streak 9 | 1 . 2 9 3 Combat Bots Only 3 | . . 2 3 3 Max Kills in Single Turn 6 | 1 . 1 6 1 Gunslinging . | . . . . . Exploded 2 | . . . 2 . Melee . | . . . . . Uniques/NPCs Destroyed . | . . . . . Combat | -11 -10 -10 -9 -8 -------- Run | Yrd Mat Min Mat Mat Hostile Shots Fired 151 | . . 4 43 104 Missed 46 | . . 2 7 37 Hits 105 | . . 2 36 67 Melee 35 | . . . . 35 Projectile 70 | . . 2 36 32 AOE 3 | . . . . 3 Critical Strikes 19 | . . 1 . 18 Damage Taken 1751 | . . 16 567 1168 Core 729 | . . 9 163 557 Absorbed by Shields . | . . . . . Core Remaining (%) 85 | 100 . 96 59 . Volleys Fired 38 | 1 . 3 18 16 Largest 2 | 2 . 2 2 2 Hottest 150 | 40 . 40 105 150 Shots Fired 61 | 2 . 5 30 24 Gun 22 | 2 . 5 15 . Cannon 26 | . . . 4 22 Launcher 13 | . . . 11 2 Special . | . . . . . Kinetic 22 | 2 . 5 15 . Thermal 26 | . . . 4 22 Explosive 9 | . . . 7 2 Electromagnetic 4 | . . . 4 . Robot Hit Streak 9 | 2 . 3 6 9 Robot Miss Streak 2 | . . 2 2 2 Penetration Max . | . . . . . Secondary Targets 2 | . . 1 1 . Max Gunslinging Chain 1 | . . 1 1 . Shots Hit Robots 46 | 2 . 2 24 18 Core Hits 36 | 2 . 2 25 7 Critical Kills 1 | . . . 1 . Critical Parts Destroyed . | . . . . . Critical Strikes 3 | . . . 1 2 Meltdown 1 | . . . 1 . Sever 2 | . . . . 2 Melee Attacks 11 | . . . 6 5 Impact . | . . . . . Slashing 5 | . . . . 5 Piercing . | . . . . . Sneak Attacks 4 | . . . 4 . Combat Hostiles . | . . . . . Follow-up Attacks . | . . . . . Damage Inflicted 1193 | 25 . 28 698 442 Guns 203 | 25 . 28 150 . Cannons 400 | . . . 50 350 Explosions 535 | . . . 498 37 Melee 55 | . . . . 55 Ramming . | . . . . . Kinetic 203 | 25 . 28 150 . Thermal 400 | . . . 50 350 Explosive 418 | . . . 381 37 Electromagnetic 117 | . . . 117 . Impact . | . . . . . Slashing 55 | . . . . 55 Piercing . | . . . . . Highest Corruption 2 | . . . . 2 Average Corruption 1 | . . . . 1 Corruption Purged . | . . . . . Corruption Blocked . | . . . . . Effects 1 | . . . . 1 Heat Flow Errors 1 | . . . . 1 Overload Shots . | . . . . . Overflow Damage 12 | . . . 12 . Projectiles . | . . . . . Explosions 12 | . . . 12 . Melee . | . . . . . Knockbacks . | . . . . . Impact . | . . . . . Kinetic . | . . . . . Secondary . | . . . . . Self-Inflicted Damage 90 | . . . 67 23 Shots 4 | . . . 3 1 Rammed . | . . . . . Targets Rammed . | . . . . . Kicked . | . . . . . Crushed . | . . . . . Highest Temperature 339 | . . . 148 339 Average Temperature 81 | . . . 44 96 Received Heat Transfer 342 | . . . 243 99 Effects 2 | . . . . 2 Energy Bleed 1 | . . . . 1 Interference 1 | . . . . 1 Siege Activations . | . . . . . Martial Activations . | . . . . . Shielding Activations . | . . . . . Robots Disrupted . | . . . . . Combat Hostiles . | . . . . . Robots Corrupted . | . . . . . Combat Hostiles . | . . . . . Parts Fried . | . . . . . Impact Corruptions . | . . . . . Robots Melted 1 | . . . 1 . Combat Hostiles 1 | . . . 1 . Parts Melted 2 | . . . 2 . Heat Transferred 592 | . . . 74 518 Parts Sabotaged . | . . . . . Parts Stolen . | . . . . . Parts Stripped . | . . . . . Power Chain Reactions . | . . . . . Alert | -11 -10 -10 -9 -8 ------- Run | Yrd Mat Min Mat Mat Maximum Alert Level . | . . . . . Low Security (%) 100 | 100 100 100 100 100 Level 1 . | . . . . . Level 2 . | . . . . . Level 3 . | . . . . . Level 4 . | . . . . . Level 5 . | . . . . . High Security . | . . . . . Max Security . | . . . . . Peak Influence 106 | 5 5 50 106 48 Initial 40 | . . . 11 40 Average 29 | . . 38 40 28 Influence Increases 450 | 5 5 50 213 177 Destroy 0b10 Robot/C 260 | . . 40 100 120 Destroy 0b10 Robot/NC 40 | 5 . . 35 . Destroy Leader 66 | . . 10 26 30 Successful Hack 17 | . 5 . . 12 Destroy Structure 67 | . . . 52 15 Influence Decreases 450 | 5 5 20 147 273 Entered New Map 75 | . . . 19 56 Time Decay 264 | 5 5 20 101 133 Lost Part 111 | . . . 27 84 Squads Dispatched 4 | . . . 1 3 Investigation . | . . . . . Extermination . | . . . . . Reinforcement 4 | . . . 1 3 Assault . | . . . . . Garrison . | . . . . . Intercept . | . . . . . Searches Triggered . | . . . . . Construction Impeded . | . . . . . Haulers Reinforced . | . . . . . Active Scanning Responses . | . . . . . Cargo Convoy Interrupts . | . . . . . Stealth | -11 -10 -10 -9 -8 --------- Run | Yrd Mat Min Mat Mat Distress Signals 3 | . 1 . 2 . Communications Jammed . | . . . . . Distress Signals . | . . . . . Times Spotted 33 | . . 3 12 18 Peak Tracking Total 10 | . 3 3 6 10 Tactical Retreats . | . . . . . Traps | -11 -10 -10 -9 -8 ------- Run | Yrd Mat Min Mat Mat Traps Triggered 5 | . . . 3 2 Indirectly . | . . . . . Trap Hack Attempts . | . . . . . Triggered . | . . . . . Disarmed . | . . . . . Reprogrammed . | . . . . . Reused . | . . . . . Traps Extracted . | . . . . . Installed . | . . . . . Triggered . | . . . . . Machines | -11 -10 -10 -9 -8 ---------- Run | Yrd Mat Min Mat Mat Machines Disabled . | . . . . . Max in Single Turn . | . . . . . Machines Repaired . | . . . . . Machines Dismantled . | . . . . . Machines Sabotaged . | . . . . . Overloaded Fab Kills . | . . . . . Hacking | -11 -10 -10 -9 -8 --------- Run | Yrd Mat Min Mat Mat Machines Accessed 9 | . 2 . . 7 Terminals 6 | . 2 . . 4 Fabricators . | . . . . . Repair Stations . | . . . . . Recycling Units 1 | . . . . 1 Scanalyzers 2 | . . . . 2 Garrison Access . | . . . . . Total Hacks 28 | . 5 . . 23 Successful 11 | . 1 . . 10 Failed 17 | . 4 . . 13 Catastrophic 2 | . 2 . . . Database Lockouts . | . . . . . Manual 2 | . 2 . . . Terminals 21 | . 5 . . 16 Fabricators . | . . . . . Repair Stations . | . . . . . Recycling Units 4 | . . . . 4 Scanalyzers 3 | . . . . 3 Garrison Access . | . . . . . Terminal Hacks 5 | . 1 . . 4 Record 1 | . . . . 1 Prototype ID Bank 1 | . . . . 1 Locate Traps 1 | . . . . 1 Investigation Status 1 | . . . . 1 Zone Layout 1 | . 1 . . . Fabricator Hacks . | . . . . . Repair Station Hacks . | . . . . . Recycling Unit Hacks 3 | . . . . 3 Retrieve Matter 2 | . . . . 2 Retrieve Components 1 | . . . . 1 Scanalyzer 3 | . . . . 3 Retrieve Study 3 | . . . . 3 Garrison Access Hacks . | . . . . . Unauthorized Hacks . | . . . . . Terminals . | . . . . . Fabricators . | . . . . . Repair Stations . | . . . . . Recycling Units . | . . . . . Scanalyzers . | . . . . . Garrison Access . | . . . . . Data Cores Recovered . | . . . . . Used . | . . . . . Hacking Detections 7 | . 2 . . 5 Full Trace Events . | . . . . . Feedback Events . | . . . . . Feedback Blocked . | . . . . . Robot Schematics Acquired . | . . . . . Robots Built . | . . . . . Authchips . | . . . . . Time . | . . . . . Total Robot Build Rating . | . . . . . Part Schematics Acquired . | . . . . . Parts Built . | . . . . . Authchips . | . . . . . Time . | . . . . . Total Part Build Rating . | . . . . . Part Studies Acquired 3 | . . . . 3 Parts Repaired . | . . . . . Time . | . . . . . Parts Recycled . | . . . . . Recycled Matter . | . . . . . Retrieved Matter . | . . . . . Retrieved Components 3 | . . . . 3 Parts Scanalyzed . | . . . . . Part Schematics Acquired . | . . . . . Parts Damaged . | . . . . . Bothacking | -11 -10 -10 -9 -8 ------------ Run | Yrd Mat Min Mat Mat Used RIF Installer . | . . . . . Robots Hacked 3 | . . . 3 . Non-combat 3 | . . . 3 . Combat . | . . . . . Robot Hacks Applied 4 | . . . 4 . parse_system 2 | . . . 2 . no_distress 1 | . . . 1 . find_recycling 1 | . . . 1 . Relay Couplers Released . | . . . . . Fabnet Peak Effective % . | . . . . . Robots Rewired . | . . . . . Allies Hacked . | . . . . . Hacks Repelled . | . . . . . Allies | -11 -10 -10 -9 -8 -------- Run | Yrd Mat Min Mat Mat Total Allies . | . . . . . Largest Group . | . . . . . Highest-Rated Group . | . . . . . Highest-Rated Ally . | . . . . . Total Orders . | . . . . . Ally Attacks . | . . . . . Total Damage . | . . . . . Kills . | . . . . . Allies Corrupted . | . . . . . Allies Melted . | . . . . . Intel | -11 -10 -10 -9 -8 ------- Run | Yrd Mat Min Mat Mat Active Infowar (turns) . | . . . . . Robot Analysis Total . | . . . . . Derelict Logs Recovered . | . . . . . Drone Launches . | . . . . . Drone Recoveries . | . . . . . Exploration | -11 -10 -10 -9 -8 ------------- Run | Yrd Mat Min Mat Mat Turns Passed 847 | 57 91 48 356 295 Spaces Moved 768 | 42 87 36 279 324 Core 8 | 5 . . . 3 Treads . | . . . . . Legs . | . . . . . Wheels 375 | 37 87 36 215 . Hover 385 | . . . 64 321 Flight . | . . . . . Fastest Speed 48 | 50 100 100 48 48 Average Speed 73 | 94 100 100 86 50 Slowest Speed 200 | 100 100 100 195 200 Overloaded Moves . | . . . . . Propulsion Burnouts . | . . . . . Robots Hopped . | . . . . . Potential Cave-ins . | . . . . . Cave-ins Triggered . | . . . . . Exploration Rate (%) 17 | 3 22 9 27 25 Regions Visited 4 Branch Regions 1 Pre-discovered Areas . | . . . . . Known Exits Taken . | . . . . . Unknown Exits Taken 4 | 1 1 1 1 . Scrap Searched 1 | . . 1 . . Spaces Dug . | . . . . . Terrain Destroyed 66 | . . . 50 16 Melee . | . . . . . Projectile 9 | . . . 2 7 AOE 57 | . . . 48 9 Terrain Rammed . | . . . . . Walls Destroyed . | . . . . . Machines Disabled . | . . . . . Actions | -11 -10 -10 -9 -8 --------- Run | Yrd Mat Min Mat Mat Total 968 | 57 91 42 359 419 Wait 68 | . 4 2 15 47 Move 764 | 41 86 35 278 324 Hop . | . . . . . Pick Up 36 | 9 1 . 18 8 Fast Attach 8 | . . . 4 4 Attach 30 | 6 . . 13 11 Detach . | . . . . . Swap 7 | . . 2 3 2 Drop 6 | . . . 4 2 Fire 38 | 1 . 3 18 16 Melee 11 | . . . 6 5 Ram . | . . . . . Kick . | . . . . . Crush . | . . . . . Escape Stasis . | . . . . . Rewire . | . . . . . Trap . | . . . . . Miscellaneous . | . . . . . Route ------- -11/Scrapyard -10/Materials -10/Mines -9/Materials -8/Materials History --------- Turn | Location | Event 14 | -11/Scrapyard | Discovered new exit (range 15) 58 | -11/Scrapyard | Entered Materials 117 | -10/Materials | Discovered new exit (range 16) 149 | -10/Materials | Entered Mines 171 | -10/Mines | Met a Derelict bent on vengeance 174 | -10/Mines | Discovered new exit (range 4) 197 | -10/Mines | Entered Materials 197 | -9/Materials | Evolved 2 slots: Propulsion x2 317 | -9/Materials | Build established: Mutant 410 | -9/Materials | Lost 6 parts (1p3n2w) 547 | -9/Materials | Discovered new exit (range 13) 553 | -9/Materials | Entered another Materials area 553 | -8/Materials | Evolved 2 slots: Utility x2 821 | -8/Materials | Core integrity fell below 50% 837 | -8/Materials | Core integrity fell below 20% 848 | -8/Materials | Destroyed by C-17 Slicer with Blade Saw Last Messages --------------- K-01 Serf collects debris. U-05 Engineer lays Concrete. K-01 Serf destroyed. Nuclear Core destroyed. Triggered Proton Bomb Trap. A bubble of electromagnetic force engulfs the area. Proton Bomb Trap short circuited. Door malfunctions. A bubble of electromagnetic force engulfs the area. System corrupted: Heat flow error (+149). Imp. Hover Unit+ destroyed. S-10 Pest destroyed. Imp. Hover Unit+ destroyed. Triggered Proton Bomb Trap. A bubble of electromagnetic force engulfs the area. C-17 Slicer destroyed. S-10 Pest destroyed. Map ----- +----------------------------------------------------+ | #??????????????????????????????? | | T #??????????????????????????????? | | #???????####???????????????????? | | #### #??????## ###??????????????????? | | ##?#########??##### #####???????????????? | | ##?????# ?## #######?????????? | | ######## ## # #?????????? | | # # ##"" # #?????????? | | # = # ##"" !! # """ #?????????? | | # """# """ ##"T !! # """ #?????????? | | * # T"# """ ##"" ! # """ #?????????? | | #= ="""# """ ##"" # #?????????? | | !% #= =#/[ ## # """ #?????????? | | ! ## # # +## ##+##### """ #?????????? | | = !* + """ #?????????? | | =%= #### #?????????? | | = ]=[% #??# #?????????? | | ### ][ ### # #### #########?? | | # # ##+#####! * #?? | | #### ## "" + # #?? | | [???### =* """ # # "" #?? | | """ ??????## S" # =* ### + "T !#?? | | """ ???????#! !!! ##%[ #?# # "" #?? | | """????????# !!! ##s #?# # !#?? | | ####????????#! !! ! ##= #?###########?? | | ????????????# //%@ #?????????????? | | ????????????############^c####?????????????? | | ????????????????????####c=##???????????????? | | ????????????????????# c #???????????????? | | ????????????????????#! !#???????????????? | | ????????????????????##!!!!##???????????????? | | ?????????????????????######????????????????? | | ???????????????????????????????????????????? | | ???????????????????????????????????????????? | | ???????????????????????????????????????????? | | ???????????????????????????????????????????? | | ???????????????????????????????????????????? | | | | | | | | | | | | | | | | | | | | | | | | | | | +----------------------------------------------------+ Best States ------------- Heat Dissipation 31 Energy Generation 15 Energy Capacity 250 Matter Stores 285 Matter Capacity 300 Sight Range 16 Terrain Scan Density 10 Armor Coverage 150 Evasion (%) 55 Targeting Accuracy 8 Offensive Hacking 10 Item Schematics ----------------- None Robot Schematics ------------------ None Fabricated ------------ Nothing Repaired ---------- Nothing Studied --------- Imp. Hover Unit | -8/Materials | Hacked Hvy. Particle Cannon | -8/Materials | Hacked Lgt. Nuclear Core | -8/Materials | Hacked Alien Tech Used ----------------- None Achievements -------------- None Challenges ------------ None Game ------ Seed InsulatedEfficiencyFalx Manual? 0 Play Time 00:18:34 Cumulative 13.6 hours Start 2026.02.09 @ 23:24:50 End 2026.02.09 @ 23:41:30 Sessions 1 Manual Loads 0 Difficulty Rogue Special Mode None Game No. 29 Rogue 29 Adventurer 0 Explorer 0 Win Type - Total 0 Types 0/0/0/0/0/0/0/0/0/0 Lore% 15 Gallery% 19 Achievement% 15 Wizard Run 0 Options --------- Layout 1 ASCII 0 Keyboard 0 Movement Mouse Keybinds 0 Fullscreen 1 Font 24/Smallcaps Map View 50x35 Zoom Use 0% Tactical HUD 0 Map Filters NONE Filters NONE Steam 1 RUN: 979c4c1c-449e-469e-99aa-4325bd7cf016